fUSD/lending_fUSD_20241107
["ID","MTS","AMOUNT","RATE_DAILY","PERIOD"]
[341540305,1730969454385,-500.0,0.00030684,4]
[341540306,1730969454394,-500.0,0.00030684,4]
[341540307,1730969454404,-500.0,0.00030684,4]
[341540308,1730969454413,-632.87,0.00030684,4]
[341540309,1730969454422,-1547.06,0.00030684,4]
[341540310,1730969454432,-500.0,0.00030684,4]
[341540311,1730969454441,-1531.39,0.00030684,4]
[341540312,1730969454451,-500.0,0.00030684,4]
[341540313,1730969454461,-500.0,0.00030684,4]
[341540314,1730969454470,-500.0,0.00030684,4]
[341540315,1730969454480,-500.0,0.00030684,4]
[341540316,1730969454489,-595.53,0.00030684,4]
[341540317,1730969454498,-500.0,0.00030684,4]
[341540318,1730969454507,-500.0,0.00030684,4]
[341540319,1730969454517,-751.1,0.00030684,4]
[341540320,1730969454526,-593.22,0.00030684,4]
[341540321,1730969454535,-1959.41,0.00030684,4]
[341540322,1730969454544,-500.0,0.00030684,4]
[341540323,1730969454555,-500.0,0.00030684,4]
[341540324,1730969454564,-500.0,0.00030684,4]
[341540325,1730969454576,-500.0,0.00030684,4]
[341540326,1730969454585,-1482.58,0.00030684,4]
[341540327,1730969454594,-500.0,0.00030684,4]
[341540328,1730969454603,-321.39561974,0.00030684,4]
[341540329,1730969454612,-1658.29,0.00030684,4]
[341540330,1730969454621,-500.0,0.00030684,4]
[341540331,1730969454630,-1037.52,0.00030684,4]
[341540332,1730969454639,-500.0,0.00030684,4]
[341540333,1730969454648,-647.26,0.00030684,4]
[341540334,1730969454657,-500.0,0.00030684,4]
[341540335,1730969454667,-540.71,0.00030684,4]
[341540336,1730969454676,-500.0,0.00030684,4]
[341540337,1730969454685,-500.0,0.00030684,4]
[341540338,1730969454694,-500.0,0.00030684,4]
[341540339,1730969454704,-500.0,0.00030684,4]
[341540340,1730969454713,-241.68768992,0.00030684,4]
[341540341,1730969454722,-284.79347149,0.00030684,4]
[341540342,1730969455633,-215.20652851,0.00030684,4]
[341540343,1730969455643,-326.43025027,0.00030684,4]
[341540344,1730969455654,-349.64974973,0.00030684,4]
[341540345,1730969455664,-500.0,0.00030684,4]
[341540346,1730969455673,-500.0,0.00030684,4]
[341540347,1730969455682,-500.0,0.00030684,4]
[341540348,1730969455691,-500.0,0.00030684,4]
[341540349,1730969455701,-888.63,0.00030684,4]
[341540350,1730969455710,-638.91,0.00030684,4]
[341540351,1730969455719,-466.4455189,0.00030684,4]
[341540352,1730969455731,-1001.0744811,0.00030684,4]
[341540353,1730969455741,-500.0,0.00030684,4]
[341540354,1730969455750,-594.59,0.00030684,4]
[341540355,1730969455759,-151.0,0.00030684,7]
[341540356,1730969455769,-151.0,0.00030684,7]
[341540357,1730969455780,-1310.42,0.00030684,4]
[341540358,1730969455793,-151.0,0.00030684,7]
[341540359,1730969455802,-160.00679852,0.00030684,4]
[341540360,1730969455813,-315.6,0.00030684,4]
[341540361,1730969456294,-24.39320148,0.00030684,4]
[341540362,1730969456304,-96.83780903,0.00030684,4]
[341540363,1730969456315,-500.39219097,0.00030684,4]
[341540364,1730969456329,-252.32727279,0.00030684,4]
[341540365,1730969456409,-247.67272721,0.00030684,4]
[341540366,1730969456419,-1256.83,0.00030684,4]
[341540367,1730969456428,-500.0,0.00030684,4]
[341540368,1730969456438,-645.67,0.00030684,4]
[341540369,1730969456447,-1068.78,0.00030684,4]
[341540370,1730969456456,-1600.62,0.00030684,4]
[341540371,1730969456466,-1160.28,0.00030684,4]
[341540372,1730969456475,-500.0,0.00030684,4]
[341540373,1730969456484,-500.0,0.00030684,4]
[341540374,1730969456493,-500.0,0.00030684,4]
[341540375,1730969456503,-500.0,0.00030684,4]
[341540376,1730969456512,-554.93,0.00030684,4]
[341540377,1730969456521,-500.0,0.00030684,4]
[341540378,1730969456531,-1361.24,0.00030684,4]
[341540379,1730969456539,-576.51,0.00030684,4]
[341540380,1730969456548,-773.54,0.00030684,4]
[341540381,1730969456557,-1482.32,0.00030684,4]
[341540382,1730969456567,-582.92,0.00030684,4]
[341540383,1730969456582,-500.0,0.00030684,4]
[341540384,1730969456591,-500.0,0.00030684,4]
[341540385,1730969456600,-710.09,0.00030684,4]
[341540386,1730969456609,-500.0,0.00030684,4]
[341540387,1730969456618,-500.0,0.00030684,4]
[341540388,1730969456627,-686.23,0.00030684,4]
[341540389,1730969456636,-1435.15,0.00030684,4]
[341540390,1730969456645,-1167.0,0.00030684,4]
[341540391,1730969456654,-500.0,0.00030684,4]
[341540392,1730969456663,-1150.78,0.00030684,4]
[341540393,1730969456673,-736.24,0.00030684,4]
[341540394,1730969456683,-500.0,0.00030684,4]
[341540395,1730969456692,-500.0,0.00030684,4]
[341540396,1730969456702,-2046.49,0.00030684,4]
[341540397,1730969456711,-500.0,0.00030684,4]
[341540398,1730969456720,-500.0,0.00030684,4]
[341540399,1730969456729,-500.0,0.00030684,4]
[341540400,1730969456739,-925.56,0.00030684,4]
[341540401,1730969456748,-500.0,0.00030684,4]
[341540402,1730969456757,-500.0,0.00030684,4]
[341540403,1730969456766,-500.0,0.00030684,4]
[341540404,1730969456775,-1149.74,0.00030684,4]
[341540405,1730969456785,-500.0,0.00030684,4]
[341540406,1730969456795,-435.40191666,0.00030684,4]
[341540407,1730969456804,-1373.98,0.00030684,4]
[341540408,1730969456813,-1000.0,0.00030684,10]
[341540409,1730969456827,-1868.88,0.00030684,4]
[341540410,1730969456836,-1077.27,0.00030684,4]
[341540411,1730969456847,-500.0,0.00030684,4]
[341540412,1730969456858,-500.0,0.00030684,4]
[341540413,1730969456868,-1326.87,0.00030684,4]
[341540414,1730969456878,-500.0,0.00030684,4]
[341540415,1730969456887,-602.45,0.00030684,4]
[341540416,1730969456896,-600.59,0.00030684,4]
[341540417,1730969456906,-690.19,0.00030684,4]
[341540418,1730969456916,-500.0,0.00030684,4]
[341540419,1730969456925,-1122.55,0.00030684,4]
[341540420,1730969456934,-500.0,0.00030684,4]
[341540421,1730969456943,-1288.0,0.00030684,4]
[341540422,1730969456953,-500.0,0.00030684,4]
[341540423,1730969456962,-1099.48,0.00030684,4]
[341540424,1730969456972,-544.32,0.00030684,4]
[341540425,1730969456981,-500.0,0.00030684,4]
[341540426,1730969456990,-1282.86,0.00030684,4]
[341540427,1730969456999,-917.66,0.00030684,4]
[341540428,1730969457008,-500.0,0.00030684,4]
[341540429,1730969457018,-306.395862,0.00030684,7]
[341540430,1730969457026,-306.395862,0.00030684,7]
[341540431,1730969457035,-306.395862,0.00030684,7]
[341540432,1730969457044,-500.0,0.00030684,4]
[341540433,1730969457052,-500.0,0.00030684,4]
[341540434,1730969457061,-600.94,0.00030684,4]
[341540435,1730969457072,-1493.58,0.00030684,4]
[341540436,1730969457086,-306.395862,0.00030684,7]
[341540437,1730969457095,-306.395862,0.00030684,7]
[341540438,1730969457105,-306.395862,0.00030684,7]
[341540439,1730969457114,-1632.55,0.00030684,4]
[341540440,1730969457123,-449.15914361,0.00030684,4]
[341540441,1730969457132,-500.0,0.00030684,4]
[341540442,1730969457141,-500.0,0.00030684,4]
[341540443,1730969457151,-698.89,0.00030684,4]
[341540444,1730969457160,-500.0,0.00030684,4]
[341540445,1730969457169,-303.74955591,0.00030684,4]
[341540446,1730969457179,-500.0,0.00030684,4]
[341540447,1730969457188,-500.0,0.00030684,4]
[341540448,1730969457197,-1067.02,0.00030684,4]
[341540449,1730969457206,-500.0,0.00030684,4]
[341540450,1730969457215,-500.0,0.00030684,4]
[341540451,1730969457224,-1009.23,0.00030684,4]
[341540452,1730969457234,-729.79,0.00030684,4]
[341540453,1730969457243,-500.0,0.00030684,4]
[341540454,1730969457252,-1470.21,0.00030684,4]
[341540455,1730969457260,-500.0,0.00030684,4]
[341540456,1730969457270,-1383.39,0.00030684,4]
[341540457,1730969457279,-1343.4,0.00030684,4]
[341540458,1730969457288,-500.0,0.00030684,4]
[341540459,1730969457297,-500.0,0.00030684,4]
[341540460,1730969457306,-500.0,0.00030684,4]
[341540461,1730969457315,-538.3,0.00030684,4]
[341540462,1730969457328,-500.0,0.00030684,4]
[341540463,1730969457336,-1456.53,0.00030684,4]
[341540464,1730969457346,-553.69,0.00030684,4]
[341540465,1730969457356,-500.0,0.00030684,4]
[341540466,1730969457365,-500.0,0.00030684,4]
[341540467,1730969457374,-659.04,0.00030684,4]
[341540468,1730969457383,-705.49,0.00030684,4]
[341540469,1730969457392,-1031.48,0.00030684,4]
[341540470,1730969457401,-685.25,0.00030684,4]
[341540471,1730969457410,-1219.13,0.00030684,4]
[341540472,1730969457420,-901.78,0.00030684,4]
[341540473,1730969457429,-500.0,0.00030684,4]
[341540474,1730969457438,-500.0,0.00030684,4]
[341540475,1730969457447,-500.0,0.00030684,4]
[341540476,1730969457456,-500.0,0.00030684,4]
[341540477,1730969457465,-1349.75,0.00030684,4]
[341540478,1730969457474,-500.0,0.00030684,4]
[341540479,1730969457483,-500.0,0.00030684,4]
[341540480,1730969457492,-500.0,0.00030684,4]
[341540481,1730969457501,-367.32461694,0.00030684,4]
[341540482,1730969457510,-583.06,0.00030684,4]
[341540483,1730969457519,-500.0,0.00030684,4]
[341540484,1730969457529,-1750.78,0.00030684,4]
[341540485,1730969457538,-631.01,0.00030684,4]
[341540486,1730969457547,-500.0,0.00030684,4]
[341540487,1730969457558,-655.25,0.00030684,4]
[341540488,1730969457567,-500.0,0.00030684,4]
[341540489,1730969457579,-598.17,0.00030684,4]
[341540490,1730969457588,-500.0,0.00030684,4]
[341540491,1730969457597,-500.0,0.00030684,4]
[341540492,1730969457606,-1316.39,0.00030684,4]
[341540493,1730969457615,-500.0,0.00030684,4]
[341540494,1730969457624,-1112.0,0.00030684,4]
[341540495,1730969457633,-556.71,0.00030684,4]
[341540496,1730969457642,-500.0,0.00030684,4]
[341540497,1730969457651,-500.0,0.00030684,4]
[341540498,1730969457660,-1074.32,0.00030684,4]
[341540499,1730969457670,-500.0,0.00030684,4]
[341540500,1730969457679,-535.23,0.00030684,4]
[341540501,1730969457688,-649.09,0.00030684,4]
[341540502,1730969457698,-1415.78,0.00030684,4]
[341540503,1730969457708,-688.13,0.00030684,4]
[341540504,1730969457717,-500.0,0.00030684,4]
[341540505,1730969457727,-500.0,0.00030684,4]
[341540506,1730969457736,-500.0,0.00030684,4]
[341540507,1730969457746,-500.0,0.00030684,4]
[341540508,1730969457756,-1514.44,0.00030684,4]
[341540509,1730969457765,-1750.47,0.00030684,4]
[341540510,1730969457774,-500.0,0.00030684,4]
[341540511,1730969457786,-626.75,0.00030684,4]
[341540512,1730969457800,-629.45,0.00030684,4]
[341540513,1730969457810,-671.03,0.00030684,4]
[341540514,1730969457819,-500.0,0.00030684,4]
[341540515,1730969457831,-1006.04,0.00030684,4]
[341540516,1730969457840,-974.4,0.00030684,4]
[341540517,1730969457849,-663.17,0.00030684,4]
[341540518,1730969457860,-500.0,0.00030684,4]
[341540519,1730969457870,-1004.82,0.00030684,4]
[341540520,1730969457881,-1070.7,0.00030684,4]
[341540521,1730969457890,-415.54,0.00030684,4]
[341540522,1730969457900,-748.04,0.00030684,4]
[341540523,1730969457909,-2337.4,0.00030684,4]
[341540524,1730969457919,-155.81435065,0.00030684,4]
[341540525,1730969457928,-1202.65,0.00030684,4]
[341540526,1730969457937,-500.0,0.00030684,4]
[341540527,1730969457946,-500.0,0.00030684,4]
[341540528,1730969457956,-885.63,0.00030684,4]
[341540529,1730969457966,-957.84,0.00030684,4]
[341540530,1730969457975,-661.09,0.00030684,4]
[341540531,1730969457984,-500.0,0.00030684,4]
[341540532,1730969457993,-500.0,0.00030684,4]
[341540533,1730969458002,-1275.62,0.00030684,4]
[341540534,1730969458011,-3141.66,0.00030684,4]
[341540535,1730969458020,-500.0,0.00030684,4]
[341540536,1730969458029,-500.0,0.00030684,4]
[341540537,1730969458038,-656.85,0.00030684,4]
[341540538,1730969458047,-763.41,0.00030684,4]
[341540539,1730969458056,-500.0,0.00030684,4]
[341540540,1730969458066,-500.0,0.00030684,4]
[341540541,1730969458078,-649.72,0.00030684,4]
[341540542,1730969458087,-516.28,0.00030684,4]
[341540543,1730969458096,-2000.0,0.00030684,4]
[341540544,1730969458105,-500.0,0.00030684,4]
[341540545,1730969458114,-557.85,0.00030684,4]
[341540546,1730969458123,-500.0,0.00030684,4]
[341540547,1730969458132,-500.0,0.00030684,4]
[341540548,1730969458141,-668.69,0.00030684,4]
[341540549,1730969458150,-1026.73,0.00030684,4]
[341540550,1730969458159,-661.34,0.00030684,4]
[341540551,1730969458169,-644.64,0.00030684,4]
[341540552,1730969458178,-261.9449351,0.00030684,4]
[341540553,1730969458477,-611.63,0.00030136,4]
[341540554,1730969458486,-500.0,0.00030136,4]
[341540555,1730969458496,-389.91,0.0003041,4]
[341540556,1730969458515,-221.72,0.0003041,4]
[341540557,1730969458525,-238.0550649,0.00030684,4]
[341540558,1730969458535,-1233.24,0.00030684,4]
[341540559,1730969458545,-565.92114181,0.00030684,4]
[341540560,1730969458712,-21.29850147,0.00030684,4]
[341540561,1730969526939,157.9,0.00015342,2]
[341540563,1730969546329,150.0,0.00018123,2]
[341540564,1730969548930,180.2,0.00016602,2]
[341540565,1730969587728,150.0,0.00018123,2]
[341540566,1730969629115,150.0,0.00018123,2]
[341540567,1730969686654,150.0,0.00024021,20]
[341540570,1730969893749,150.0,0.00018123,2]
[341540571,1730969997290,200.19367748,0.00018032,2]
[341540572,1730970002580,150.0,0.00018123,2]
[341540573,1730970002766,150.0,0.00018123,2]
[341540574,1730970002944,150.0,0.00018123,2]
[341540575,1730970003422,150.0,0.00018123,2]
[341540576,1730970003603,150.0,0.00018123,2]
[341540577,1730970003836,150.0,0.00018123,2]
[341540578,1730970004024,150.0,0.00018123,2]
[341540579,1730970004283,150.0,0.00018123,2]
[341540580,1730970004476,150.0,0.00018123,2]
[341540581,1730970004663,169.21228009,0.00018123,2]
[341540583,1730970034146,176.14,0.00015342,2]
[341540584,1730970062452,-300.0,0.00019725,2]
[341540586,1730970122477,-300.0,0.00019725,2]
[341540587,1730970243053,-300.0,0.00019725,2]
[341540589,1730970424143,-300.0,0.00019725,2]
[341540590,1730970440139,-420.0,0.00021484,2]
[341540591,1730970440163,-176.14,0.00021745,2]
[341540592,1730970440182,-256.52,0.00022426,2]
[341540593,1730970440201,-467.0,0.00023401,2]
[341540594,1730970440220,-742.05416991,0.00024832,2]
[341540595,1730970440240,-500.0,0.00024932,2]
[341540596,1730970440260,-157.32897671,0.00026395,2]
[341540597,1730970442343,-1066.15102329,0.00026395,2]
[341540598,1730970442366,-150.99586821,0.00026467,2]
[341540599,1730970442387,-500.0,0.000274,7]
[341540600,1730970442407,-180.2,0.00027578,2]
[341540601,1730970442428,-2640.26,0.00027864,2]
[341540602,1730970442448,-199.8,0.00028146,30]
[341540603,1730970442470,-176.14,0.00028147,2]
[341540604,1730970442492,-250.0,0.00028157,2]
[341540605,1730970442512,-200.0,0.00028157,7]
[341540606,1730970442531,-167.03,0.00028157,2]
[341540607,1730970442551,-394.54,0.00028176,2]
[341540608,1730970442571,-24868.7528,0.00028212,2]
[341540609,1730970442591,-200.0,0.00028213,2]
[341540610,1730970442610,-612.29570019,0.00028215,2]
[341540611,1730970445150,-439.07889538,0.00028215,2]
[341540612,1730970453120,-622.01689127,0.00028215,2]
[341540614,1730970533643,157.53,0.00015342,2]
[341540616,1730970631650,-3836.6,0.00027665,2]
[341540617,1730970631659,-1653.4362782,0.00028109,2]
[341540618,1730970631675,-2183.1637218,0.00028109,2]
[341540619,1730970631684,-1484.10833982,0.00028146,2]
[341540620,1730970631693,-2998.88906372,0.00028157,2]
[341540621,1730970631716,-10482.16501476,0.00028157,2]
[341540622,1730970631727,-5883.93592152,0.00028157,2]
[341540623,1730970631737,-853.04851316,0.00028215,2]
[341540624,1730970631746,-550.07,0.0002823,2]
[341540625,1730970631755,-250.0,0.00028246,2]
[341540626,1730970631766,-221.23,0.00028328,2]
[341540627,1730970631775,-240.8,0.00028369,2]
[341540628,1730970631784,-1947.7,0.00028369,5]
[341540629,1730970631794,-5976.56,0.00028432,2]
[341540630,1730970631803,-800.0,0.00028472,2]
[341540631,1730970631813,-250.0,0.00028476,2]
[341540632,1730970631823,-269.18,0.00028486,120]
[341540633,1730970631832,-3836.6,0.00028554,2]
[341540634,1730970631841,-184.93,0.0002858,2]
[341540635,1730970631850,-522.42784529,0.00028659,2]
[341540638,1730970632082,-48.78654397,0.00028659,2]
[341540639,1730970632099,-589.38244259,0.00028659,2]
[341540640,1730970632111,-62.88316815,0.00028659,2]
[341540641,1730970632120,-150.03,0.00028844,2]
[341540642,1730970632131,-150.03,0.00028861,2]
[341540643,1730970632141,-150.03,0.00028877,2]
[341540644,1730970632150,-150.03,0.00028894,2]
[341540645,1730970632159,-150.03,0.00028911,2]
[341540646,1730970632169,-150.03,0.00028928,2]
[341540647,1730970632179,-150.03,0.00028945,2]
[341540648,1730970632188,-150.03,0.00028962,2]
[341540649,1730970632197,-150.03,0.00028979,2]
[341540650,1730970632208,-150.03,0.00028996,2]
[341540651,1730970632217,-3836.6,0.00028998,2]
[341540652,1730970632226,-82.51683181,0.00029013,2]
[341540653,1730970632238,-67.51316819,0.00029013,2]
[341540654,1730970632247,-150.03,0.0002903,2]
[341540655,1730970632256,-150.03,0.00029047,2]
[341540656,1730970632266,-150.03,0.00029064,2]
[341540657,1730970632275,-177.42,0.0002907,2]
[341540658,1730970632285,-150.03,0.00029081,2]
[341540659,1730970632295,-150.03,0.00029098,2]
[341540660,1730970632303,-150.03,0.00029115,2]
[341540661,1730970632312,-150.03,0.00029132,2]
[341540662,1730970632321,-216.14,0.00029327,2]
[341540663,1730970632331,-3836.6,0.00029443,2]
[341540664,1730970632340,-161.993504,0.0002954,2]
[341540665,1730970632349,-530.82,0.00029633,120]
[341540666,1730970632358,-200.0,0.00029669,2]
[341540667,1730970632367,-166.52,0.0002972,2]
[341540668,1730970632377,-200.0,0.000298,10]
[341540669,1730970632386,-4242.0,0.00029835,2]
[341540670,1730970632395,-3836.6,0.00029887,2]
[341540671,1730970632404,-500.0,0.000299,10]
[341540672,1730970632413,-263.2444,0.00029935,2]
[341540673,1730970632422,-1116.8887,0.00029935,2]
[341540674,1730970632431,-1000.0,0.00029935,2]
[341540675,1730970632441,-18075.8631,0.00029935,2]
[341540676,1730970632450,-1000.0,0.00029935,2]
[341540677,1730970632459,-2500.0,0.00029935,2]
[341540678,1730970632468,-457.3226427,0.00029936,2]
[341540679,1730970632478,-5008.46173376,0.00029936,15]
[341540680,1730970632487,-179.37186655,0.00029936,2]
[341540681,1730970632496,-152.0,0.00029954,3]
[341540682,1730970632506,-152.24575,0.0003,2]
[341540683,1730970632517,-152.24575,0.0003,2]
[341540684,1730970632527,-151.0,0.0003,120]
[341540685,1730970632536,-162.591,0.0003,2]
[341540686,1730970632545,-1040.92047023,0.0003,30]
[341540687,1730970632554,-162.591,0.0003,2]
[341540688,1730970632564,-219.41,0.00030024,10]
[341540689,1730970632573,-216.2184,0.00030033,2]
[341540690,1730970632583,-21235.58945582,0.00030033,2]
[341540691,1730970632592,-4860.1242,0.00030034,2]
[341540692,1730970632602,-2017.9943,0.00030034,2]
[341540693,1730970632612,-500.0,0.00030034,2]
[341540694,1730970632621,-500.0,0.00030034,2]
[341540695,1730970632630,-500.0,0.00030034,2]
[341540696,1730970632639,-500.0,0.00030034,2]
[341540697,1730970632649,-500.0,0.00030034,2]
[341540698,1730970632658,-500.0,0.00030034,2]
[341540699,1730970632666,-500.0,0.00030034,2]
[341540700,1730970632675,-500.0,0.00030034,2]
[341540701,1730970632684,-500.0,0.00030034,2]
[341540702,1730970632694,-500.0,0.00030034,2]
[341540703,1730970632703,-500.0,0.00030034,2]
[341540704,1730970632711,-500.0,0.00030034,2]
[341540705,1730970632721,-500.0,0.00030034,2]
[341540706,1730970632730,-500.0,0.00030034,2]
[341540707,1730970632739,-500.0,0.00030034,2]
[341540708,1730970632747,-500.0,0.00030034,2]
[341540709,1730970632756,-500.0,0.00030034,2]
[341540710,1730970632765,-500.0,0.00030034,2]
[341540711,1730970632774,-446.96710454,0.00030034,2]
[341540712,1730970632783,-525.0,0.00030034,2]
[341540713,1730970632792,-525.0,0.00030034,2]
[341540714,1730970632802,-525.0,0.00030034,2]
[341540715,1730970632811,-525.0,0.00030034,2]
[341540716,1730970632820,-525.0,0.00030034,2]
[341540717,1730970632830,-525.0,0.00030034,2]
[341540718,1730970632839,-525.0,0.00030034,2]
[341540719,1730970632847,-525.0,0.00030034,2]
[341540720,1730970632856,-245000.0,0.00030035,2]
[341540721,1730970632866,-94035.7266,0.00030036,2]
[341540722,1730970632875,-500.0,0.00030036,2]
[341540723,1730970632884,-195.30146307,0.00030036,2]
[341540724,1730970632893,-39603.90187489,0.00030133,2]
[341540725,1730970633365,-2519.84998623,0.00030133,2]
[341540726,1730970633376,-758.99867757,0.00030133,2]
[341540727,1730970633398,-925.9206361,0.00030133,2]
[341540733,1730970637753,-240.50324704,0.00029934,2]
[341540734,1730970637763,-469.49675296,0.00030133,2]
[341540735,1730970637999,-302.11590518,0.00030133,2]
[341540737,1730970638353,-3511.79615444,0.00030133,2]
[341540738,1730970638381,-651.73811856,0.00030133,2]
[341540739,1730970638391,-187.79344974,0.00030136,7]
[341540740,1730970638401,-29.17935558,0.00030136,4]
[341540741,1730970638446,-604.72767511,0.00030136,4]
[341540742,1730970638455,-214.96556658,0.00030136,4]
[341540743,1730970638471,-285.03443342,0.00030136,4]
[341540744,1730970638480,-500.0,0.00030136,4]
[341540745,1730970638490,-277.74374758,0.00030136,4]
[341540746,1730970638514,-130.70007821,0.00030136,4]
[341540747,1730970638522,-241.42216,0.00030136,4]
[341540748,1730970638532,-823.52,0.00030136,4]
[341540749,1730970638541,-500.0,0.00030136,4]
[341540750,1730970638550,-500.0,0.00030136,4]
[341540751,1730970638559,-1771.91,0.00030136,4]
[341540752,1730970638568,-500.0,0.00030136,4]
[341540753,1730970638577,-500.0,0.00030136,4]
[341540754,1730970638587,-500.0,0.00030136,4]
[341540755,1730970638596,-500.0,0.00030136,4]
[341540756,1730970638605,-153.1758,0.00030136,4]
[341540757,1730970638615,-235.327917,0.00030136,4]
[341540758,1730970638625,-1338.9,0.00030136,4]
[341540759,1730970638635,-157.950213,0.00030136,4]
[341540760,1730970638646,-364.01518667,0.00030136,4]
[341540763,1730970639783,-1525.87074936,0.00028,15]
[341540764,1730970639841,-3180.70334768,0.00028,15]
[341540765,1730970639850,-135.98481333,0.00030136,4]
[341540766,1730970639860,-500.0,0.00030136,4]
[341540767,1730970639869,-500.0,0.00030136,4]
[341540768,1730970639878,-319.05108145,0.00030136,4]
[341540769,1730970639888,-500.0,0.00030136,4]
[341540770,1730970639897,-626.54,0.00030136,4]
[341540771,1730970639906,-500.0,0.00030136,4]
[341540772,1730970639915,-500.0,0.00030136,4]
[341540773,1730970639924,-500.0,0.00030136,4]
[341540774,1730970639934,-500.0,0.00030136,4]
[341540775,1730970639943,-500.0,0.00030136,4]
[341540776,1730970639952,-500.0,0.00030136,4]
[341540777,1730970639961,-551.02,0.00030136,4]
[341540778,1730970639971,-500.0,0.00030136,4]
[341540779,1730970639980,-500.0,0.00030136,4]
[341540780,1730970639989,-1203.55,0.00030136,4]
[341540781,1730970639999,-500.0,0.00030136,4]
[341540782,1730970640008,-500.0,0.00030136,4]
[341540783,1730970640018,-527.12,0.00030136,4]
[341540784,1730970640027,-1513.34,0.00030136,4]
[341540785,1730970640037,-500.0,0.00030136,4]
[341540786,1730970640046,-500.0,0.00030136,4]
[341540787,1730970640055,-500.0,0.00030136,4]
[341540788,1730970640064,-500.0,0.00030136,4]
[341540789,1730970640074,-500.0,0.00030136,4]
[341540790,1730970640083,-500.0,0.00030136,4]
[341540791,1730970640092,-628.57,0.00030136,4]
[341540792,1730970640101,-500.0,0.00030136,4]
[341540793,1730970640110,-500.0,0.00030136,4]
[341540795,1730970640121,-500.0,0.00030136,4]
[341540796,1730970640131,-500.0,0.00030136,4]
[341540797,1730970640144,-500.0,0.00030136,4]
[341540798,1730970640153,-500.0,0.00030136,4]
[341540799,1730970640162,-533.46553256,0.00030136,4]
[341540800,1730970640171,-500.0,0.00030136,4]
[341540801,1730970640180,-500.0,0.00030136,4]
[341540802,1730970640190,-1000.0,0.00030136,10]
[341540803,1730970640199,-500.0,0.00030136,4]
[341540804,1730970640208,-500.0,0.00030136,4]
[341540805,1730970640218,-682.27,0.00030136,4]
[341540806,1730970640228,-754.62,0.00030136,4]
[341540807,1730970640237,-573.55,0.00030136,4]
[341540808,1730970640246,-500.0,0.00030136,4]
[341540809,1730970640256,-500.0,0.00030136,4]
[341540810,1730970640265,-1264.68,0.00030136,4]
[341540811,1730970640274,-558.59,0.00030136,4]
[341540812,1730970640283,-633.66,0.00030136,4]
[341540813,1730970640292,-500.0,0.00030136,4]
[341540814,1730970640301,-500.0,0.00030136,4]
[341540815,1730970640309,-1221.32,0.00030136,4]
[341540816,1730970640318,-500.0,0.00030136,4]
[341540817,1730970640327,-500.0,0.00030136,4]
[341540818,1730970640337,-500.0,0.00030136,4]
[341540819,1730970640346,-500.0,0.00030136,4]
[341540820,1730970640355,-537.36,0.00030136,4]
[341540821,1730970640364,-357.41226755,0.00030136,4]
[341540822,1730970640373,-500.0,0.00030136,4]
[341540823,1730970640383,-500.0,0.00030136,4]